[Event "ChessKid Cup Div-I 2023"]
[Site "Online"]
[Date "2023.05.24"]
[Round "52.3"]
[White "Moussard, Jules"]
[Black "Kollars, Dmitrij"]
[Result "1-0"]
[ECO "C83"]
[WhiteElo "2644"]
[BlackElo "2607"]
[Annotator "TA"]
[PlyCount "167"]
[EventDate "2023.05.21"]
[EventType "k.o."]
[EventCountry "NET"]
[SourceTitle "playchess.com"]
[Source "ChessBase"]
[SourceQuality "1"]
[TimeControl "900+3"]

{[%evp 17,165,19,41,17,27,0,0,0,0,0,0,0,8,16,32,18,21,39,31,6,0,7,16,18,16,8,48,36,36,-66,152,145,141,138,148,139,171,172,176,164,184,170,170,150,173,170,200,150,150,0,203,150,150,145,166,150,338,337,348,339,350,324,350,334,356,355,350,349,323,325,297,318,322,320,301,283,293,256,245,231,239,238,195,145,268,198,195,100,100,102,450,415,916,947,881,818,4944,4242,3227,3044,1585,1258,29972,29972,29975,29973,29972,29973,29972,29973,29968,12556,29976,29977,29978,29979,29978,29978,29977,29978,29979,29979,29979,29980,29981,29982,29982,29982,29981,29980,29987,29988,29990,29991,29991,29992,29992,29993,29993,29994,29994,29995,29995,29996,29997,29998,29998,29998,29998,29999]} 1. e4 {[%emt 0:00:06]} e5 {[%emt 0:05:38]} 2. Nf3 {[%emt 0:00:05]} Nc6 {[%emt 0:00:03]} 3. Bb5 {[%emt 0:00:03]} a6 {[%emt 0:00:04]} 4. Ba4 {[%emt 0:00:04]} Nf6 {[%emt 0:00:03]} 5. O-O {[%emt 0:00:03]} Nxe4 {[%emt 0:00:04]} 6. d4 {[%emt 0:00:05]} b5 {[%emt 0:00:03]} 7. Bb3 {[%emt 0:00:03]} d5 {[%emt 0:00:04]} 8. dxe5 {[%emt 0:00:04]} Be6 {[%emt 0:00:03]} 9. c3 {[%emt 0:00:09]} Be7 {[%emt 0:00:04] now supersedes 9...Bc5.} 10. h3 {[%emt 0:00:04] C83: Open Ruy Lopez: 9 c3 Be7.} O-O {[%emt 0:00:06]} 11. Bc2 {[%emt 0:00:09]} Qd7 {[%emt 0:00:28]} 12. Nbd2 {[%emt 0:00:44] The position is equal.} f5 {[%emt 0:00:05]} 13. exf6 {[%emt 0:00:05]} Nxf6 {[%emt 0:00:05]} 14. Re1 {[%emt 0:00:07] [#]} Rae8 $146 {[%emt 0:00:43]} ({Predecessor:} 14... Bd6 15. Nf1 Ne4 16. Ng5 Nxg5 17. Bxg5 Kh8 18. Ng3 Rae8 19. Qd3 Bg8 20. Rxe8 Qxe8 21. Nf5 Qg6 {½-½ Kruse,H (2501)-Larwinski,P (2478) FICGS rapid silver 000268 email 2021 (1)}) 15. Nf1 {[%emt 0:01:39]} Bf5 {[%emt 0:01:04]} 16. Bxf5 {[%emt 0:01:01]} Qxf5 {[%emt 0:00:03]} 17. Ng3 {[%emt 0:00:09]} Qd7 {[%emt 0:00:07]} 18. Qd3 {[%emt 0:00:58]} Bd6 {[%emt 0:00:12]} 19. Bg5 {[%emt 0:00:54]} Bxg3 {[%emt 0:00:29][%mdl 64] [#] Remove Defender} 20. fxg3 {[%emt 0:00:03]} Ne4 {[%emt 0:00:04]} 21. Bf4 {[%emt 0:00:28]} (21. Rad1 {simplifies} Nxg3 22. Rxe8 Rxe8 23. Qxd5+ Qxd5 24. Rxd5 h6 25. Bh4) 21... h6 {[%emt 0:00:06]} 22. Rad1 $1 {[%emt 0:00:15][%cal Oe1e4] And now Rxe4! would win.} g5 {[%emt 0:00:39] [#]} 23. Bxc7 {[%emt 0:01:21]} Rf7 $2 {[%emt 0:01:11]} (23... Qxc7 $15 {keeps the upper hand.} 24. Qxd5+ Kg7 25. Rxe4 Rd8 {[%mdl 64] Skewer} 26. Nxg5 Rxd5 27. Ne6+ Kh8 28. Rxd5 Qh7) 24. Bb6 $16 {[%emt 0:00:27]} Ne5 {[%emt 0:00:28]} 25. Nxe5 {[%emt 0:00:57]} Rxe5 {[%emt 0:00:03]} 26. Rf1 {[%emt 0:00:34]} Ref5 {[%emt 0:00:19]} 27. Rxf5 {[%emt 0:00:35][%mdl 64] Remove Defender} Qxf5 {[%emt 0:00:03]} 28. g4 {[%emt 0:00:22]} Qe6 {[%emt 0:00:04]} 29. Bd4 {[%emt 0:00:09]} ({Inferior is} 29. Qxd5 Qxb6+ 30. Qd4 Qe6 $17) 29... Qd6 {[%emt 0:00:06]} 30. Rf1 {[%emt 0:00:30]} Qe6 {[%emt 0:00:12]} 31. Rf3 {[%emt 0:00:11]} Qg6 {[%emt 0:00:28]} 32. Be3 {[%emt 0:00:17]} Qe6 {[%emt 0:00:05]} 33. Bd4 {[%emt 0:00:19]} (33. Qd4 $16) 33... Qg6 $1 $18 {[%emt 0:00:05]} 34. Qe3 {[%emt 0:00:05]} Qe6 {[%emt 0:00:06]} 35. Rxf7 {[%emt 0:00:11]} Qxf7 $16 {[%emt 0:00:05][%mdl 4096] Endgame KQB-KQN} 36. Qf3 {[%emt 0:00:07]} Nd2 $2 {[%emt 0:00:30]} (36... Qe6 $16 37. b3 a5) 37. Qxf7+ $18 {[%emt 0:00:07]} Kxf7 {[%emt 0:00:04] KB-KN} 38. Kf2 {[%emt 0:00:17]} Nc4 {[%emt 0:00:27]} 39. b3 {[%emt 0:00:05]} Na5 {[%emt 0:00:04]} 40. Ke3 {[%emt 0:00:07]} Nc6 {[%emt 0:00:03]} 41. Kd3 {[%emt 0:00:04]} Kg6 {[%emt 0:00:11]} 42. a3 {[%emt 0:00:08]} Na5 {[%emt 0:00:05]} 43. Kc2 {[%emt 0:00:04]} Nc6 {[%emt 0:00:03]} 44. Bf2 {[%emt 0:00:05]} Na5 {[%emt 0:00:05]} 45. Bb6 {[%emt 0:00:04]} Nc6 {[%emt 0:00:03]} 46. Kd3 {[%emt 0:00:08]} Kf7 {[%emt 0:00:04]} 47. Bc7 {[%emt 0:00:28]} Ke6 {[%emt 0:00:04]} 48. Bg3 {[%emt 0:00:11]} Na5 {[%emt 0:00:05]} 49. Kc2 {[%emt 0:00:04]} Nc6 {[%emt 0:00:04]} 50. Bf2 {[%emt 0:00:10]} (50. Bc7 $18) 50... Na5 {[%emt 0:00:08]} (50... Ke5 $16 51. Kd3 Kf4) 51. Bd4 {[%emt 0:00:06] Bg7 would be deadly.} Kf7 {[%emt 0:00:50]} 52. a4 {[%emt 0:00:15]} ({Better is} 52. Bb6 $18 Nc6 53. Kd3) 52... bxa4 $16 {[%emt 0:00:03]} 53. bxa4 {[%emt 0:00:04]} Nc6 $2 {[%emt 0:00:05][%mdl 8192]} (53... Nc4 $16 54. Kb3 a5) 54. Kd3 $18 {[%emt 0:00:06]} Kg6 {[%emt 0:00:05]} (54... Na5 $142 55. Bc5 Nc6) 55. c4 {[%emt 0:00:07]} dxc4+ {[%emt 0:00:07]} 56. Kxc4 {[%emt 0:00:03]} h5 {[%emt 0:00:07]} 57. gxh5+ {[%emt 0:00:04]} Kxh5 {[%emt 0:00:03]} 58. Bf2 {[%emt 0:00:29]} Ne5+ {[%emt 0:00:05]} 59. Kd4 {[%emt 0:00:04]} Ng6 {[%emt 0:00:05]} 60. g4+ {[%emt 0:00:18]} Kh6 {[%emt 0:00:05]} 61. Bg3 {[%emt 0:00:03]} Kg7 {[%emt 0:00:07]} 62. Kc5 {[%emt 0:00:03]} Kf6 {[%emt 0:00:06]} 63. Kb6 {[%emt 0:00:05]} Nf4 {[%emt 0:00:05]} 64. h4 {[%emt 0:00:04] hxg5+ would kill now.} Nd5+ {[%emt 0:00:04]} 65. Kxa6 {[%emt 0:00:04] ?ev?.} gxh4 {[%emt 0:00:05]} 66. Bxh4+ {[%emt 0:00:04]} Ke5 {[%emt 0:00:04]} 67. Bg5 {[%emt 0:00:14]} Nc3 {[%emt 0:00:12]} 68. a5 {[%emt 0:00:06]} Ne4 {[%emt 0:00:03]} 69. Be3 {[%emt 0:00:07]} Nd6 {[%emt 0:00:05]} 70. g5 {[%emt 0:00:08]} Kf5 {[%emt 0:00:03]} 71. Bc1 {[%emt 0:00:05]} Ke6 {[%emt 0:00:08]} 72. Kb6 {[%emt 0:00:04]} Nc4+ {[%emt 0:00:04]} 73. Kb5 {[%emt 0:00:04]} Ne5 {[%emt 0:00:06]} 74. a6 {[%emt 0:00:06]} Kd7 {[%emt 0:00:04]} 75. a7 {[%emt 0:00:08]} Nc6 {[%emt 0:00:04]} 76. a8=Q {[%emt 0:00:04]} Nd4+ {[%emt 0:00:03]} 77. Kc4 {[%emt 0:00:04]} Ne6 {[%emt 0:00:03]} 78. Qd5+ {[%emt 0:00:04]} Ke7 {[%emt 0:00:04]} 79. Ba3+ {[%emt 0:00:04]} Kf7 {[%emt 0:00:04]} 80. Qf5+ {[%emt 0:00:03]} Kg7 {[%emt 0:00:04]} 81. Qxe6 {[%emt 0:00:06]} Kh8 {[%emt 0:00:03]} 82. Qf6+ {[%emt 0:00:05]} Kg8 {[%emt 0:00:04]} 83. Bb2 {[%emt 0:00:06]} Kh7 {[%emt 0:00:03]} 84. Qg7# {[%emt 0:00:04] Weighted Error Value: White=0.18 (very precise) /Black=0.42} 1-0

[Event "ChessKid Cup Div-I 2023"]
[Site "Online"]
[Date "2023.05.25"]
[Round "53.1"]
[White "Caruana, Fabiano"]
[Black "Moussard, Jules"]
[Result "1-0"]
[ECO "C42"]
[WhiteElo "2764"]
[BlackElo "2644"]
[Annotator "TA"]
[PlyCount "93"]
[EventDate "2023.05.21"]
[EventType "k.o."]
[EventCountry "NET"]
[SourceTitle "playchess.com"]
[Source "ChessBase"]
[SourceQuality "1"]
[TimeControl "900+3"]

{[%evp 18,93,37,36,33,4,12,0,16,14,14,8,14,25,26,14,38,20,23,18,73,62,78,78,78,78,78,70,89,60,74,66,91,91,120,113,116,108,123,113,162,168,161,154,177,163,177,178,258,258,258,220,685,685,683,683,672,621,612,609,1178,1131,12832,12831,12833,12833,12833,12834,12834,12835,12830,4698,12834,12835,12833,12834,12835,12835]} 1. e4 {[%emt 0:00:04]} e5 {[%emt 0:00:05]} 2. Nf3 {[%emt 0:00:01]} Nf6 {[%emt 0:00:02]} 3. Nxe5 {[%emt 0:00:01]} d6 {[%emt 0:00:01]} 4. Nf3 {[%emt 0:00:01]} Nxe4 {[%emt 0:00:01]} 5. d4 {[%emt 0:00:01]} d5 {[%emt 0:00:01]} 6. Bd3 {[%emt 0:00:01]} Bd6 {[%emt 0:00:01]} 7. O-O {[%emt 0:00:02]} O-O {[%emt 0:00:01]} 8. c4 {[%emt 0:00:01]} c6 {[%emt 0:00:01]} 9. Re1 {[%emt 0:00:02]} Bf5 {[%emt 0:00:12]} 10. Qb3 {[%emt 0:00:04]} Qd7 {[%emt 0:00:04] C42: Petroff Defence: 3 Nxe5 and unusual White 3rd moves.} 11. Be3 $5 {[%emt 0:00:08][%mdl 4] 11.c5 is becoming the main line. Leaves trodden paths.} dxc4 {[%emt 0:00:19]} 12. Bxc4 {[%emt 0:00:02] [#]} b5 $146 {[%emt 0:00:08] The position is equal.} ({Predecessor:} 12... Na6 13. Ne5 Qc7 14. Nc3 Nxc3 15. bxc3 b5 16. Bf1 Nc5 17. Qd1 Be6 18. Bf4 Nd7 {½-½ Vachier Lagrave,M (2750)-Deac,B (2671) Bucharest Superbet Classic 2nd 2022 (8)}) 13. Bd3 {[%emt 0:01:45] [#] Qc2 would be deadly.} Na6 {[%emt 0:01:08]} 14. a3 {[%emt 0:00:05] Wards off Nb4} Bg6 {[%emt 0:00:56]} (14... Nf6 {simplifies} 15. Bxf5 Qxf5 16. Nc3 Rfe8) 15. Nh4 {[%emt 0:02:13] aiming for Nxg6.} (15. Qc2 {simplifies} Rfe8 16. Nh4 Nf6 17. Nxg6 hxg6 18. Nd2) 15... Rfe8 {[%emt 0:01:45][%cal Oa6c5]} 16. Nxg6 {[%emt 0:00:05]} hxg6 {[%emt 0:00:01]} 17. Nc3 {[%emt 0:00:53]} Nxc3 {[%emt 0:00:53]} 18. bxc3 {[%emt 0:00:00]} Kf8 {[%emt 0:00:48]} (18... Nc7 $1 $11 {keeps the balance.}) 19. a4 $36 {[%emt 0:03:19][%cal Ra4b5][%mdl 2048] White is pushing.} Nc7 {[%emt 0:00:02]} 20. axb5 {[%emt 0:00:01]} cxb5 {[%emt 0:00:02]} 21. Ra5 {[%emt 0:00:04][%cal Rd3b5]} a6 {[%emt 0:00:19][%cal Oc7d5]} 22. g3 {[%emt 0:00:38]} Rab8 {[%emt 0:02:17][%cal Od6f4]} 23. Rea1 {[%emt 0:00:28]} Qg4 {[%emt 0:00:28][%cal Od6g3]} 24. Kg2 {[%emt 0:01:15] White stays focused until the end.} (24. Qd1 {simplifies} Qxd1+ 25. Rxd1 Be7 26. Kg2) 24... Qd7 {[%emt 0:01:20]} 25. Be2 {[%emt 0:00:13]} Kg8 {[%emt 0:00:05]} 26. Bf3 {[%emt 0:00:06]} Red8 {[%emt 0:01:13]} 27. h4 {[%emt 0:00:13]} Bf8 {[%emt 0:00:18]} 28. Rh1 {[%emt 0:00:17] White has more active pieces.} Qe6 {[%emt 0:00:17]} (28... Be7 $16) 29. Qxe6 $18 {[%emt 0:00:36]} fxe6 {[%emt 0:00:01]} 30. Bg5 {[%emt 0:00:06]} Rdc8 {[%emt 0:00:07]} 31. Rc1 {[%emt 0:00:40]} Bd6 {[%emt 0:02:09]} 32. c4 {[%emt 0:00:45] c5 is the strong threat.} bxc4 {[%emt 0:00:06]} (32... Bb4 $142 33. Ra2 a5) 33. Rxc4 {[%emt 0:00:02]} Kf7 {[%emt 0:00:35]} 34. Rc6 {[%emt 0:00:13][%cal Bc4c6,Bc6d6,Bd6d7][%mdl 32]} Nb5 {[%emt 0:00:40] [#]} (34... Bb4) 35. Rxb5 $1 {[%emt 0:00:51][%mdl 576] Remove Defender. White is clearly winning.} axb5 {[%emt 0:00:01]} (35... Rxc6 36. Rxb8) 36. Rxd6 {[%emt 0:00:01]} b4 {[%emt 0:00:00]} 37. Rd7+ {[%emt 0:00:01]} Kg8 {[%emt 0:00:07]} 38. Bf4 {[%emt 0:00:03][%cal Of4e5] Hoping for Be5!} Rb6 {[%emt 0:00:02]} 39. Be5 {[%emt 0:00:04]} b3 {[%emt 0:00:04]} 40. Be4 {[%emt 0:00:13]} b2 {[%emt 0:00:05]} 41. Bxg6 {[%emt 0:00:07]} b1=Q {[%emt 0:00:17]} 42. Bxb1 {[%emt 0:00:03]} Rxb1 {[%emt 0:00:01]} 43. Rxg7+ {[%emt 0:00:02]} Kf8 {[%emt 0:00:01]} 44. h5 {[%emt 0:00:04][%cal Bh4h5,Bh5h6,Bh6h7][%mdl 32]} Rcc1 {[%emt 0:00:00]} 45. h6 {[%emt 0:00:08]} Rg1+ {[%emt 0:00:05]} 46. Kf3 {[%emt 0:00:01]} Rh1 {[%emt 0:00:08]} 47. h7 {[%emt 0:00:03] Weighted Error Value: White=0.07 (flawless) /Black=0.31} 1-0

[Event "ChessKid Cup Div-I 2023"]
[Site "Online"]
[Date "2023.05.25"]
[Round "53.2"]
[White "Moussard, Jules"]
[Black "Caruana, Fabiano"]
[Result "1-0"]
[ECO "C90"]
[WhiteElo "2644"]
[BlackElo "2764"]
[Annotator "TA"]
[PlyCount "123"]
[EventDate "2023.05.21"]
[EventType "k.o."]
[EventCountry "NET"]
[SourceTitle "playchess.com"]
[Source "ChessBase"]
[SourceQuality "1"]
[TimeControl "900+3"]

{[%evp 26,123,38,35,31,42,36,9,29,0,5,0,1,3,44,0,0,0,28,25,10,0,0,-45,-44,-98,-102,-112,-82,-67,-46,-42,-37,-88,-10,-94,-94,-85,-31,-39,-64,-59,-50,-48,-32,-56,-25,-16,-13,-12,0,0,0,0,0,-22,0,-55,25,27,36,34,52,48,54,18,147,148,158,150,383,113,108,37,50,8,60,49,62,0,0,0,121,56,215,215,226,226,548,410,658,621,7902,5915,5915,5401,29957,29944,6015,5324]} 1. e4 {[%emt 0:00:12]} e5 {[%emt 0:00:05]} 2. Nf3 {[%emt 0:00:01]} Nc6 {[%emt 0:00:02]} 3. Bb5 {[%emt 0:00:12]} a6 {[%emt 0:00:01]} 4. Ba4 {[%emt 0:00:01]} Nf6 {[%emt 0:00:02]} 5. O-O {[%emt 0:00:01]} Be7 {[%emt 0:00:01]} 6. d3 {[%emt 0:00:05]} b5 {[%emt 0:00:05]} 7. Bb3 {[%emt 0:00:01]} d6 {[%emt 0:00:01]} 8. c3 {[%emt 0:00:44]} O-O {[%emt 0:00:06]} 9. Re1 {[%emt 0:00:04]} Na5 {[%emt 0:00:08]} 10. Bc2 {[%emt 0:00:01]} c5 {[%emt 0:00:01]} 11. Nbd2 {[%emt 0:00:18][%cal Bb1d2,Bd2f1,Bf1g3][%mdl 32]} Re8 {[%emt 0:00:07]} 12. Nf1 {[%emt 0:00:03]} h6 {[%emt 0:00:01]} 13. d4 {[%emt 0:00:18]} cxd4 {[%emt 0:01:18]} 14. cxd4 {[%emt 0:00:02]} exd4 {[%emt 0:00:01] C90: Closed Ruy Lopez with 7...d6: Early deviations.} 15. Nxd4 {[%emt 0:00:03]} Bf8 {[%emt 0:00:02]} 16. Ng3 {[%emt 0:00:11]} g6 {[%emt 0:00:56] [#] The position is equal.} 17. Bd2 $146 {[%emt 0:00:57][%cal Bc1d2,Bd2c3,Bc3d4][%mdl 32]} ({Predecessor:} 17. b3 Bg7 18. Bb2 Qb6 19. Qd2 Bb7 20. Ndf5 gxf5 21. Nxf5 Re5 22. Nxg7 Kxg7 23. Re3 {1-0 Smirin,I (2668)-Liss,E (2474) ISR-chT Israel 2010 (9.2)}) 17... Bg7 {[%emt 0:01:35]} 18. Bc3 {[%emt 0:00:51]} Bg4 {[%emt 0:00:35]} 19. Qd3 {[%emt 0:01:08]} Qb6 {[%emt 0:01:45]} 20. Nb3 {[%emt 0:01:30]} Nc4 {[%emt 0:00:13]} 21. h3 {[%emt 0:00:13] Black must now prevent Bd4.} Bd7 {[%emt 0:00:16]} 22. Bd4 {[%emt 0:00:45]} Qd8 {[%emt 0:00:25]} 23. f4 {[%emt 0:00:49]} Rc8 {[%emt 0:00:24]} 24. Re2 {[%emt 0:00:54]} h5 {[%emt 0:01:07][%cal Bh6h5,Bh5h4][%mdl 32]} 25. Rf1 {[%emt 0:03:17]} (25. Qf3 $15) 25... h4 $17 {[%emt 0:00:33]} 26. Nh1 {[%emt 0:00:01]} Nh5 {[%emt 0:01:07]} 27. Bxg7 {[%emt 0:00:16]} Kxg7 {[%emt 0:00:00]} 28. Qd4+ {[%emt 0:00:28]} Kg8 {[%emt 0:00:24]} 29. Bd3 {[%emt 0:00:16]} (29. Kh2 $15) 29... Qb6 {[%emt 0:00:26]} (29... g5 $1 $17 30. f5 Nf4) 30. Rf3 {[%emt 0:00:17]} (30. Kh2 $11 {remains equal.}) 30... Qxd4+ $1 {[%emt 0:00:40]} 31. Nxd4 {[%emt 0:00:00] [#]} g5 $1 {[%emt 0:00:02]} 32. b3 $15 {[%emt 0:00:30]} Nxf4 {[%emt 0:01:21]} 33. Rxf4 {[%emt 0:00:18]} gxf4 {[%emt 0:00:00]} 34. bxc4 {[%emt 0:00:00]} bxc4 {[%emt 0:00:01]} 35. Bc2 {[%emt 0:00:01]} c3 {[%emt 0:00:00]} 36. Nf2 {[%emt 0:00:13]} Rc4 {[%emt 0:00:23]} 37. Nf3 {[%emt 0:00:04]} Ba4 {[%emt 0:00:18]} 38. Bxa4 {[%emt 0:01:03]} Rxa4 {[%emt 0:00:00]} 39. Rc2 {[%emt 0:00:02]} Rc8 {[%emt 0:01:00]} 40. Kf1 {[%emt 0:00:08]} Rb8 {[%emt 0:00:03] Hoping for ...Rb2.} 41. Nd1 {[%emt 0:00:27] Prevents Rb2} ({White should try} 41. Nd3 $11) 41... Rb1 {[%emt 0:00:37]} (41... Rxe4 $15 42. Rc1 d5) 42. Ke2 $11 {[%emt 0:00:01]} Rxe4+ {[%emt 0:00:02]} 43. Kd3 {[%emt 0:00:00]} d5 {[%emt 0:00:31]} 44. Nxc3 {[%emt 0:00:06]} Re3+ {[%emt 0:00:01]} 45. Kd4 {[%emt 0:00:10]} (45. Kd2 $5 {[%cal Rc3b1]} Rf1 46. Nd1 $16 (46. Nxd5 Rf2+ 47. Kc1 Rxc2+ {[%mdl 64] Remove Defender} 48. Kxc2 Re2+ 49. Kd3 Rxg2 $15)) 45... Rf1 {[%emt 0:00:21]} (45... Rb4+ $11 46. Kxd5 Rb8) 46. Nxd5 $16 {[%emt 0:00:06]} Rd1+ {[%emt 0:00:01]} 47. Kc5 {[%emt 0:00:00]} Ra3 {[%emt 0:00:05] [#]} (47... Re6 $16 {might work better.} 48. Rc4 (48. Nxf4 Rd8 $16) (48. Nxh4 $2 {perishes.} Re5 $19) 48... Kf8) 48. Nxf4 $2 {[%emt 0:00:12] Excellent horsemanship.} (48. Nc3 $1 $18 {[%cal Rc3d1] is the precise move to win.} Rd3 49. Kb4 Rdxc3 50. Rxc3 Rxa2 51. Nxh4) 48... Ra1 {[%emt 0:00:02]} 49. Nxh4 {[%emt 0:00:05]} (49. Kd4 $16) 49... R1xa2 {[%emt 0:00:01]} 50. Rc4 {[%emt 0:00:03]} Ra5+ {[%emt 0:00:03]} (50... Ra4 $11 51. g3 Rxc4+ 52. Kxc4 Kg7 53. Nf5+ Kf6) 51. Kb6 $14 {[%emt 0:00:02]} Rb5+ {[%emt 0:00:01]} 52. Ka7 {[%emt 0:00:01]} (52. Kc6 $14) 52... a5 $11 {[%emt 0:00:02]} 53. g4 {[%emt 0:00:02]} Kg7 {[%emt 0:00:14]} (53... Rab2 $11) 54. Rc6 {[%emt 0:00:02]} (54. Nf5+ $16 Kf6 55. Nh5+ Ke5 56. Rc7) 54... Kf8 $2 {[%emt 0:00:05]} ({Black should play} 54... Rf2 $14 55. Ka6 Rg5) 55. Nf5 $18 {[%emt 0:00:01][%cal Rc6c8]} Ke8 {[%emt 0:00:01]} 56. Rd6 {[%emt 0:00:08] Repels Rd2} Rab2 $2 {[%emt 0:00:04]} (56... Rc2 57. Nd5 Rc8 58. Nf6+ Kf8) 57. Nh5 {[%emt 0:00:02] Threatening mate with Nhg7+.} Rb7+ {[%emt 0:00:03]} (57... f6 $142 58. Nxf6+ Kf8) 58. Ka6 {[%emt 0:00:00] White threatens Nf6+ and mate.} Rb8 {[%emt 0:00:00][%cal Rb8a8]} 59. Nf6+ {[%emt 0:00:03]} (59. Kxa5 $2 Ra2#) 59... Kf8 {[%emt 0:00:01]} 60. Nd7+ {[%emt 0:00:00]} (60. Kxa5 $2 Ra2#) 60... Kg8 {[%emt 0:00:01]} 61. Nxb8 {[%emt 0:00:00]} Rxb8 {[%emt 0:00:01]} 62. Kxa5 {[%emt 0:00:01] Weighted Error Value: White=0.31/Black=0.59} 1-0

[Event "ChessKid Cup Div-I 2023"]
[Site "Online"]
[Date "2023.05.25"]
[Round "53.3"]
[White "Moussard, Jules"]
[Black "Caruana, Fabiano"]
[Result "1/2-1/2"]
[ECO "C68"]
[WhiteElo "2644"]
[BlackElo "2764"]
[Annotator "TA"]
[PlyCount "121"]
[EventDate "2023.05.21"]
[EventType "k.o."]
[EventCountry "NET"]
[SourceTitle "playchess.com"]
[Source "ChessBase"]
[SourceQuality "1"]
[TimeControl "900+3"]

{[%evp 9,121,0,26,27,14,19,22,21,33,8,17,16,23,10,29,0,10,0,0,0,0,4,14,0,0,0,0,0,0,0,0,0,0,0,0,0,0,0,0,0,0,0,0,-22,6,8,7,0,0,0,0,0,0,0,0,0,0,0,0,0,0,0,0,0,7,0,0,0,0,0,0,-7,0,-17,-16,-44,-39,-37,-23,-23,-23,-23,-24,-122,-131,-106,0,-35,0,-696,-518,-450,-470,-1410,-1237,-1087,-1284,-12832,0,-707,0,-1037,0,-122,-122,-122,-122,-12839,-12839,-12840,-12837,-12843,-12844,-12844]} 1. e4 {[%emt 0:00:06]} e5 {[%emt 0:05:08]} 2. Nf3 {[%emt 0:00:04]} Nc6 {[%emt 0:00:04]} 3. Bb5 {[%emt 0:00:04]} a6 {[%emt 0:00:04]} 4. Bxc6 {[%emt 0:00:05]} dxc6 {[%emt 0:00:05]} 5. O-O {[%emt 0:00:03]} Qf6 {[%emt 0:00:04]} 6. d4 {[%emt 0:00:05] C68: Ruy Lopez: Exchange Variation, sidelines.} exd4 {[%emt 0:00:03]} 7. Bg5 {[%emt 0:00:04]} Qd6 {[%emt 0:00:04]} 8. Nxd4 {[%emt 0:00:03] The position is equal.} Be7 {[%emt 0:00:04]} 9. Be3 {[%emt 0:00:04] is the new trend.} Nf6 {[%emt 0:00:06][%cal Bg8f6,Bf6d7,Bd7e5][%mdl 32]} 10. f3 {[%emt 0:00:08]} c5 {[%emt 0:00:04]} 11. Ne2 {[%emt 0:00:06]} Be6 {[%emt 0:00:05]} 12. b3 {[%emt 0:00:11]} O-O-O {[%emt 0:00:05]} 13. Qxd6 {[%emt 0:00:04]} Bxd6 {[%emt 0:00:04]} 14. Nbc3 {[%emt 0:00:06][%cal Bb1c3,Bc3d5,Bd5b6,Bb6a4][%mdl 32]} Nd7 {[%emt 0:00:09]} 15. Rad1 {[%emt 0:00:05]} f6 {[%emt 0:00:04] [#]} 16. h4 $146 {[%emt 0:00:08]} ({Predecessor:} 16. Kf2 Ne5 17. h4 b5 18. Nf4 Bf7 19. h5 Rhf8 20. Nce2 a5 21. Rfe1 Bg8 22. g4 {½-½ Frotscher,T (2391)-Traut,G (2197) GER SC81 pr05 email 2020}) 16... h5 {[%emt 0:00:07]} 17. Kf2 {[%emt 0:01:14]} Ne5 {[%emt 0:00:07]} 18. Nd5 {[%emt 0:00:27]} Bf7 {[%emt 0:00:11]} 19. Ng3 {[%emt 0:00:12]} Rhe8 {[%emt 0:00:36]} 20. Rd2 {[%emt 0:00:25]} c6 {[%emt 0:00:54]} 21. Nb6+ {[%emt 0:03:33]} Kc7 $1 {[%emt 0:00:06]} 22. Rfd1 {[%emt 0:00:11][%cal Ob6a8]} Bf8 {[%emt 0:00:18]} 23. Na4 {[%emt 0:00:10] aiming for Rxd8.} Rxd2+ {[%emt 0:00:09]} 24. Rxd2 {[%emt 0:00:06]} b6 {[%emt 0:00:04]} 25. Ne2 {[%emt 0:01:09]} Be7 {[%emt 0:00:06][%cal Bf8e7,Be7d8,Bd8c7][%mdl 32]} 26. Nf4 {[%emt 0:00:44]} Rd8 {[%emt 0:00:11]} 27. Rxd8 {[%emt 0:00:06]} Bxd8 {[%emt 0:00:03]} 28. Nd3 {[%emt 0:00:17]} Nxd3+ {[%emt 0:00:39]} 29. cxd3 $11 {[%emt 0:00:05][%mdl 4096] Endgame KBB-KBN} Kd7 {[%emt 0:00:06]} 30. g4 {[%emt 0:00:15]} g5 {[%emt 0:00:34]} 31. hxg5 {[%emt 0:01:23]} fxg5 {[%emt 0:00:03]} 32. Kg3 {[%emt 0:00:11]} Bc7+ {[%emt 0:00:18]} 33. Kh3 {[%emt 0:00:08]} Bd8 {[%emt 0:00:04]} 34. Nb2 {[%emt 0:00:21]} Ke6 {[%emt 0:00:52]} 35. Kg3 {[%emt 0:00:26]} Bc7+ {[%emt 0:00:18]} 36. Kg2 {[%emt 0:00:04]} Bd8 {[%emt 0:00:06]} 37. Nd1 {[%emt 0:00:21]} hxg4 {[%emt 0:00:20]} 38. fxg4 {[%emt 0:00:04]} Be7 {[%emt 0:00:04]} 39. Nf2 {[%emt 0:00:05]} Kf6 {[%emt 0:00:06]} 40. Kf3 {[%emt 0:00:05]} b5 {[%emt 0:00:07]} 41. Ke2 {[%emt 0:00:15]} a5 {[%emt 0:00:09]} 42. Kd2 {[%emt 0:00:04]} a4 {[%emt 0:00:08]} 43. Kc3 {[%emt 0:00:20]} axb3 {[%emt 0:00:05]} 44. axb3 {[%emt 0:00:03]} Be6 {[%emt 0:00:15]} 45. Kc2 $1 {[%emt 0:00:06]} Kg6 {[%emt 0:00:05]} 46. Bc1 {[%emt 0:00:07]} (46. e5 $11) 46... Bf6 $17 {[%emt 0:00:10] And now ...Bd4 would win.} 47. Be3 {[%emt 0:00:05] [#]} Be7 {[%emt 0:00:18] A strong pair of Bishops.} ({Black should play} 47... Bd4 $1 $17 {[%cal Rd4e3]} 48. Bxd4 cxd4) 48. Bd2 {[%emt 0:00:10]} Bf6 {[%emt 0:00:07] Threatens to win with ...Bd4.} 49. Bc3 {[%emt 0:00:05][%mdl 8192] [#]} (49. Be3 $11) 49... Bxc3 $1 $19 {[%emt 0:00:06]} 50. Kxc3 {[%emt 0:00:03] KB-KN} b4+ {[%emt 0:00:04]} 51. Kc2 {[%emt 0:00:09]} (51. Kb2 $142 Kf6 52. Kc2) 51... Kf6 {[%emt 0:00:04]} 52. Kb2 {[%emt 0:00:07]} Ke5 {[%emt 0:00:04]} 53. Nh3 {[%emt 0:00:03]} Kf6 {[%emt 0:00:04]} (53... Bxg4 $142 54. Ng1 Bd1) 54. Nf2 {[%emt 0:00:04]} Ke5 {[%emt 0:00:04]} 55. Nh3 $1 {[%emt 0:00:03]} Kf6 $2 {[%emt 0:00:04]} ({Better is} 55... Bxg4 $19 56. Ng1 Bd1) 56. e5+ {[%emt 0:00:16]} Kxe5 $17 {[%emt 0:00:04]} 57. Nxg5 {[%emt 0:00:03]} Bxg4 {[%emt 0:00:06] ...Bd1 would be deadly.} 58. Ne4 $2 {[%emt 0:00:03][%mdl 8192] Now White is beyond hope.} (58. Kc2 $17) 58... Kd4 $19 {[%emt 0:00:06] Black is clearly winning.} 59. Kc2 {[%emt 0:00:06]} Bf5 {[%emt 0:00:07]} 60. Nd6 {[%emt 0:00:08]} Bxd3+ {[%emt 0:00:05]} 61. Kb2 {[%emt 0:00:03][%mdl 32768] Weighted Error Value: White=0.54/Black=0.32. An unexpected result.} 1/2-1/2